bitfinex/quotes_ETHUSD_20260313
["timestamp","ask_amount","ask_price","bid_price","bid_amount"]
[1773380743814,1.09049004,2112.9,2112.6,0.001]
[1773380744016,1.09049004,2112.9,2112.7,2.034]
[1773380746154,1.09049004,2112.8,2112.7,2.034]
[1773380749166,2.27375395,2112.8,2112.7,2.034]
[1773380753171,1.09049004,2112.7,2112.6,0.001]
[1773380754372,1.09049004,2112.7,2112.6,2.037]
[1773380755273,2.27380996,2112.7,2112.6,2.037]
[1773380756384,2.27580996,2112.7,2112.6,2.037]
[1773380757353,1.09249004,2112.7,2112.6,2.037]
[1773380758056,2.27580996,2112.7,2112.6,2.037]
[1773380758855,1.09249004,2112.7,2112.6,2.036]
[1773380759069,2.27580996,2112.7,2112.5,0.001]
[1773380759280,1.09049004,2112.6,2112.5,0.001]
[1773380760389,1.09049004,2112.6,2112.5,2.036]
[1773380760900,1.09049004,2112.6,2112.5,0.001]
[1773380761204,1.09049004,2112.6,2112.5,2.036]
[1773380761892,0.002,2112.7,2112.5,2.036]
[1773380762056,1.09249004,2112.7,2112.5,2.036]
[1773380762263,2.27581156,2112.7,2112.5,2.036]
[1773380765297,1.09049004,2112.6,2112.4,0.001]
[1773380765670,1.09049004,2112.6,2112.3,0.001]
[1773380765874,1.09049004,2112.6,2112.1,0.001]
[1773380766269,1.08999004,2112.5,2112.1,0.001]
[1773380766472,1.08999004,2112.3,2112.1,2.027]
[1773380766683,1.08999004,2112.1,2111.9,0.001]
[1773380766885,1.08999004,2112.1,2111.6,1.35313634]
[1773380767285,1.08999004,2112.0,2111.6,2.53703978]
[1773380767716,1.08999004,2112.0,2111.6,2.58439723]
[1773380768096,1.08999004,2112.0,2111.6,1.40049379]
[1773380768305,1.08999004,2112.0,2111.7,2.022]
[1773380769205,4.73452314,2112.2,2111.8,0.001]
[1773380769206,1.08999004,2112.2,2111.8,0.001]
[1773380769406,2.27360846,2112.2,2111.8,0.001]
[1773380769606,2.27350164,2112.4,2111.8,0.001]
[1773380769801,2.27350164,2112.4,2111.8,0.04835081]
[1773380770007,1.08999004,2112.3,2111.8,0.04835081]
[1773380770424,2.27544669,2112.5,2111.8,0.04835081]
[1773380770998,1.08999004,2112.4,2111.8,0.04835081]
[1773380771640,2.27353404,2112.3,2111.8,1.18477809]
[1773380771803,1.08999004,2112.2,2111.8,1.18477809]
[1773380772823,1.08999004,2112.4,2111.9,0.04735072]
[1773380773234,1.08999004,2112.4,2111.9,0.84410584]
[1773380773527,1.09199004,2112.5,2111.9,0.84410584]
[1773380773732,1.09199004,2112.5,2112.0,1.18371212]
[1773380773930,1.09199004,2112.5,2112.1,0.04734624]
[1773380774727,2.27543252,2112.5,2112.1,0.04734624]
[1773380774927,1.09199004,2112.5,2112.0,1.2310606]
[1773380776014,1.09199004,2112.5,2112.0,1.18371212]
[1773380776253,2.27542664,2112.5,2112.0,1.18371212]
[1773380776747,1.08999004,2112.4,2112.0,1.18371212]
[1773380778451,0.002,2112.7,2112.1,0.04734624]
[1773380778644,1.09199004,2112.7,2112.1,0.79675512]
[1773380778957,1.09199004,2112.7,2112.1,0.84410136]
[1773380779934,0.002,2112.7,2112.1,0.84410136]
[1773380780135,1.18532359,2112.7,2112.2,1.18360003]
[1773380780335,2.27531363,2112.7,2112.3,2.028]
[1773380780734,1.09199004,2112.7,2112.3,2.028]
[1773380781731,1.09199004,2112.7,2112.3,2.0291]
[1773380781957,0.001,2112.5,2112.3,2.0291]
[1773380782269,0.001,2112.5,2112.3,3.21261607]
[1773380783856,0.001,2112.5,2112.3,3.25995783]
[1773380784775,0.001,2112.5,2112.3,3.25995272]
[1773380784983,0.001,2112.5,2112.3,3.21261096]
[1773380786299,1.09099004,2112.5,2112.3,2.0291]
[1773380786483,1.09099004,2112.5,2112.4,2.029]
[1773380788680,0.001,2112.5,2112.4,2.029]
[1773380788981,1.09099004,2112.5,2112.4,2.029]
[1773380792282,1.09099004,2112.5,2112.3,0.0011]
[1773380793610,1.08999004,2112.4,2112.0,1.18480938]
[1773380794311,1.08999004,2112.4,2112.0,0.0011]
[1773380794612,2.27347801,2112.4,2112.3,0.001]
[1773380794789,1.08999004,2112.4,2112.3,0.001]
[1773380795613,1.08949004,2112.3,2112.0,0.0011]
[1773380795909,1.08949004,2112.3,2112.1,2.03]
[1773380796908,0.001,2112.5,2112.1,3.21360434]
[1773380797216,1.19937293,2112.8,2112.4,0.51306829]
[1773380797385,1.19937293,2112.8,2112.4,0.5604078]
[1773380797680,1.19937293,2112.8,2112.4,0.04733951]
[1773380797885,0.92818017,2112.8,2112.4,0.98030484]
[1773380798785,0.93018017,2112.9,2112.5,0.96491448]
[1773380798988,0.002,2112.9,2112.6,0.96491448]
[1773380799318,0.002,2112.9,2112.7,2.03]
[1773380800009,0.002,2112.9,2112.8,0.96491448]
[1773380800996,0.002,2112.9,2112.8,2.14817839]
[1773380808208,0.002,2112.9,2112.7,2.07733279]
[1773380808434,0.98161086,2112.9,2112.8,2.032]
[1773380808926,0.002,2112.9,2112.8,2.97843036]
[1773380809230,0.97961086,2113.5,2113.0,0.94643036]
[1773380809523,0.97961086,2113.5,2113.1,0.94643036]
[1773380809727,0.97961086,2113.7,2113.1,0.94643036]
[1773380809927,0.97961086,2113.8,2113.3,0.94643036]
[1773380810425,0.97961086,2113.8,2113.5,1.18287201]
[1773380810836,0.99847294,2113.7,2113.4,2.033]
[1773380811003,0.99847294,2113.7,2113.5,2.033]
[1773380811201,0.99847294,2113.7,2113.2,2.16278506]
[1773380811940,0.99847294,2113.7,2113.1,0.97978503]
[1773380812534,0.99847294,2113.6,2113.2,3.21603993]
[1773380812749,0.99847294,2113.6,2113.3,0.97978503]
[1773380812927,2.18121222,2113.8,2113.3,0.97978503]
[1773380813243,0.99847294,2113.7,2113.3,0.97978503]
[1773380814644,2.1812356,2113.7,2113.3,2.16276088]
[1773380814813,2.1812356,2113.7,2113.3,0.97978503]
[1773380815019,0.99847294,2113.6,2113.2,4.19580111]
[1773380815325,0.99847294,2113.6,2113.2,3.01278503]
[1773380815509,0.99847294,2113.6,2113.2,4.19582159]
[1773380815940,0.99847294,2113.6,2113.2,3.21603656]
[1773380816122,0.99847294,2113.6,2113.3,0.97978503]
[1773380818441,0.99847294,2113.9,2113.4,0.79675512]
[1773380818944,0.99847294,2113.9,2113.3,2.1627358]
[1773380819118,0.99847294,2113.9,2113.3,2.16276797]
[1773380819314,0.99847294,2113.9,2113.3,1.18298294]
[1773380819517,0.99847294,2113.9,2113.2,4.19579646]
[1773380819719,0.002,2113.4,2113.2,4.19579646]
[1773380820139,0.002,2113.4,2113.2,3.01278503]
[1773380820355,2.18343077,2113.4,2113.3,2.035]
[1773380820635,1.00047294,2113.4,2113.3,2.035]
[1773380825448,0.002,2113.4,2113.3,2.035]
[1773380825634,0.002,2113.4,2113.3,3.01478503]
[1773380825833,0.002,2113.4,2113.3,2.035]
[1773380826349,0.002,2113.4,2113.3,2.08231935]
[1773380826653,0.002,2113.4,2113.3,3.2653033]
[1773380827044,0.002,2113.4,2113.3,2.08231935]
[1773380827551,0.002,2113.4,2113.3,4.19776898]
[1773380827777,1.00047294,2113.9,2113.4,0.97978503]
[1773380828074,4.96194789,2114.6,2113.8,0.79675512]
[1773380828075,0.99847294,2114.5,2113.8,0.79675512]
[1773380828291,0.99847294,2114.5,2113.9,2.037]
[1773380829551,2.18081453,2114.5,2114.0,0.79675512]
[1773380829772,0.99847294,2114.4,2113.6,0.97978503]
[1773380829945,0.99847294,2114.3,2113.6,0.97978503]
[1773380830150,0.99847294,2114.3,2113.1,4.97139318]
[1773380830151,0.99847294,2114.1,2113.1,1.24072246]
[1773380830451,0.99847294,2114.1,2113.2,0.85438166]
[1773380830653,0.99847294,2114.1,2113.4,0.85438166]
[1773380830853,0.99847294,2114.1,2113.5,0.04731488]
[1773380831054,0.99847294,2114.1,2113.6,2.038]
[1773380831553,0.99847294,2113.9,2113.6,2.038]
[1773380831953,0.99847294,2113.9,2113.6,3.22081166]
[1773380832583,0.99847294,2113.9,2113.6,2.038]
[1773380833753,1.00047294,2113.9,2113.6,2.038]
[1773380835589,1.00047294,2113.9,2113.6,3.22080321]
[1773380836474,0.002,2113.9,2113.6,3.30633791]
[1773380836773,0.002,2113.9,2113.7,0.0855347]
[1773380837386,0.002,2113.9,2113.7,0.1328451]
[1773380837688,0.002,2113.9,2113.7,0.0473104]
[1773380839294,1.00047294,2113.9,2113.6,2.08531264]
[1773380839667,1.00047294,2113.9,2113.6,3.35298264]
[1773380839896,1.00047294,2113.9,2113.6,1.31498264]
[1773380840065,1.00047294,2113.9,2113.7,2.038]
[1773380840396,0.002,2113.9,2113.7,2.0853104]
[1773380843213,0.99795288,2113.9,2113.7,2.038]
[1773380843382,0.99795288,2113.9,2113.6,0.04731264]
[1773380843584,0.99795288,2113.9,2113.8,2.038]
[1773380844124,2.18060106,2113.9,2113.8,2.038]
[1773380844325,0.99795288,2113.9,2113.8,2.038]
[1773380845114,2.18060106,2113.9,2113.8,2.038]
[1773380845314,2.18060106,2113.9,2113.6,0.04731264]
[1773380845315,0.99595288,2113.8,2113.6,0.04731264]
[1773380845690,0.99595288,2113.7,2113.3,0.001]
[1773380846709,0.99795288,2113.7,2113.4,2.038]
[1773380847016,0.99795288,2113.7,2113.5,0.001]
[1773380847317,0.99795288,2113.7,2113.3,0.001]
[1773380847494,2.18076839,2113.7,2113.3,0.13347641]
[1773380847694,0.97229656,2113.6,2113.3,0.18079576]
[1773380847896,0.97229656,2113.6,2113.3,1.23128865]
[1773380848124,0.97229656,2113.6,2113.3,1.36376499]
[1773380848288,0.002,2113.7,2113.4,2.038]
[1773380848616,0.98992156,2113.7,2113.4,2.038]
[1773380848819,0.98992156,2113.7,2113.4,2.13895444]
[1773380849194,2.17268642,2113.7,2113.4,2.038]
[1773380849398,0.98792156,2113.6,2113.4,2.038]
[1773380849595,0.98792156,2113.4,2113.3,0.001]
[1773380849799,0.98792156,2113.4,2113.3,2.039]
[1773380850218,0.98792156,2113.4,2113.0,0.10164316]
[1773380850621,0.98792156,2113.4,2113.0,1.28479234]
[1773380851503,0.98792156,2113.4,2113.1,2.038]
[1773380851905,0.98792156,2113.4,2113.2,0.04732159]
[1773380852697,0.98792156,2113.5,2113.1,2.13768932]
[1773380854125,0.98792156,2113.3,2113.0,0.001]
[1773380854421,0.98792156,2113.3,2113.0,1.18414007]
[1773380854640,0.98792156,2113.3,2113.1,0.04732383]
[1773380854839,0.98792156,2113.3,2113.0,0.04832607]
[1773380855419,0.98792156,2113.3,2113.0,1.33140386]
[1773380855620,0.98792156,2113.3,2113.1,2.037]
[1773380856151,1.18294707,2113.4,2113.1,2.037]
[1773380856438,2.17086863,2113.4,2113.1,2.037]
[1773380857132,0.98792156,2113.3,2113.1,2.037]
[1773380857627,0.98792156,2113.3,2113.0,0.001]
[1773380857855,0.98792156,2113.3,2113.2,2.037]
[1773380858031,0.98792156,2113.3,2113.0,0.10294326]
[1773380858356,0.98792156,2113.2,2113.0,0.001]
[1773380859528,0.98792156,2113.2,2113.1,2.037]
[1773380860161,0.98792156,2113.2,2112.8,0.001]
[1773380860334,0.98792156,2113.1,2112.8,0.001]
[1773380861870,0.98792156,2113.1,2112.9,2.037]
[1773380862580,0.98792156,2113.0,2112.8,0.001]
[1773380862774,0.98792156,2113.0,2112.9,2.037]
[1773380863138,0.98792156,2113.0,2112.8,0.001]
[1773380864260,2.17108845,2113.0,2112.8,0.001]
[1773380864657,0.98792156,2112.9,2112.8,0.001]
[1773380864965,0.98792156,2112.9,2112.8,2.038]
[1773380865559,2.17106206,2113.1,2112.8,2.038]
[1773380867746,0.98792156,2113.0,2112.8,2.038]
[1773380868984,0.98792156,2113.2,2112.8,3.38161826]
[1773380869176,0.98792156,2113.1,2112.8,2.19836108]
[1773380870176,0.98792156,2113.1,2112.8,3.38162145]
[1773380870780,4.73396314,2113.3,2112.9,0.11556906]
[1773380870781,2.17290927,2113.3,2112.9,0.11556906]
[1773380870949,2.17290927,2113.3,2112.9,1.29876332]
[1773380871773,0.98792156,2113.2,2112.9,0.11556906]
[1773380872072,1.18498771,2113.3,2113.0,0.04732607]
[1773380872279,2.17290927,2113.3,2113.0,0.04732607]
[1773380872468,2.17290927,2113.3,2113.1,2.037]
[1773380872881,0.98992156,2113.3,2113.1,2.037]
[1773380873289,0.002,2113.2,2113.1,2.037]
[1773380873978,0.002,2113.2,2113.1,2.15502796]
[1773380874175,0.002,2113.2,2113.1,3.33812388]
[1773380874379,0.98992156,2113.5,2113.1,3.33812388]
[1773380874690,2.17279847,2113.5,2113.1,3.33812388]
[1773380875973,2.17279847,2113.5,2113.1,2.15502796]
[1773380876174,0.98792156,2113.4,2113.1,2.037]
[1773380876397,1.03523435,2113.3,2113.0,0.001]
[1773380877273,0.98792156,2113.2,2113.0,0.001]
[1773380877679,0.98792156,2113.4,2113.1,2.038]
[1773380877886,2.17089179,2113.4,2113.1,2.15914523]
[1773380878286,2.17089179,2113.4,2113.1,2.038]
[1773380879383,2.17089179,2113.4,2113.1,2.1606535]
[1773380879705,2.17089179,2113.4,2113.1,2.20797733]
[1773380880277,0.98792156,2113.3,2113.1,2.08532383]
[1773380880605,0.98792156,2113.3,2113.0,0.001]
[1773380881611,0.98792156,2113.1,2112.8,0.001]
[1773380881792,0.98792156,2113.1,2112.7,2.81418402]
[1773380881988,0.98742156,2113.0,2112.7,2.81418402]
[1773380882191,0.98742156,2113.0,2112.5,0.001]
[1773380883383,0.98742156,2113.0,2112.6,2.038]
[1773380883710,0.98742156,2112.8,2112.6,2.038]
[1773380884109,0.98742156,2112.8,2112.5,0.001]
[1773380884304,0.98742156,2112.8,2112.2,0.0011]
[1773380885800,0.98742156,2112.6,2112.5,0.001]
[1773380887134,4.73287066,2112.9,2112.5,0.001]
[1773380887135,0.98742156,2112.9,2112.5,0.001]
[1773380889117,2.17068547,2112.8,2112.5,0.001]
[1773380890922,0.98742156,2112.7,2112.5,0.001]
[1773380891120,0.98742156,2112.7,2112.3,0.001]
[1773380891121,0.98692156,2112.5,2112.3,0.001]
[1773380893223,2.17040953,2112.4,2112.3,0.001]
[1773380893527,0.98692156,2112.4,2112.3,0.001]
[1773380894027,0.98692156,2112.4,2112.0,0.0011]
[1773380895307,2.17046556,2112.3,2112.0,0.0011]
[1773380895507,0.98692156,2112.2,2112.1,2.017]
[1773380896814,0.98692156,2112.2,2112.1,2.013]
[1773380897212,0.98692156,2112.2,2112.0,0.0011]
[1773380898838,0.98692156,2112.2,2112.1,2.016]
[1773380899147,0.97129656,2112.1,2112.0,0.0011]
[1773380899743,2.15495263,2112.1,2112.0,0.0011]
[1773380901038,2.15495263,2112.1,2112.0,2.0201]
[1773380901238,2.15495263,2112.1,2111.8,0.001]
[1773380901415,1.01518368,2112.0,2111.8,0.001]
[1773380901818,2.19882021,2112.2,2111.8,0.001]
[1773380902249,1.01518368,2112.1,2111.8,0.001]
[1773380903173,1.01518368,2112.1,2111.9,2.021]
[1773380904287,1.01518368,2112.1,2111.8,0.001]
[1773380904288,1.01518368,2112.0,2111.8,0.001]
[1773380905983,1.06249647,2112.0,2111.8,0.001]
[1773380906386,2.19895185,2111.9,2111.8,0.001]
[1773380907466,1.01518368,2111.9,2111.8,0.001]
[1773380908562,2.19895185,2111.9,2111.8,0.001]
[1773380910508,2.19895185,2111.9,2111.3,0.001]
[1773380910509,1.01518368,2111.8,2111.3,0.001]
[1773380910798,1.01518368,2111.1,2110.1,0.91441459]
[1773380910967,1.01518368,2110.6,2110.3,0.0033]
[1773380911169,1.01518368,2110.6,2110.2,0.0033]
[1773380911982,1.01518368,2110.2,2109.5,1.99]
[1773380912379,1.01518368,2110.4,2110.2,1.01518368]
[1773380912580,2.19984681,2110.4,2109.8,2.12119652]
[1773380912781,2.19984681,2110.4,2109.8,2.12449652]
[1773380912996,1.01518368,2110.3,2109.8,2.12449652]
[1773380913299,1.01518368,2110.3,2109.8,0.93957162]
[1773380913680,1.01518368,2110.3,2109.9,0.0033]
[1773380913901,1.01518368,2110.3,2109.7,0.0033]
[1773380914072,1.01518368,2110.3,2109.8,1.995]
[1773380914401,1.01518368,2110.3,2109.9,0.0033]
[1773380914765,1.01518368,2110.1,2109.9,0.0033]
[1773380915182,1.01518368,2110.1,2109.7,1.998]
[1773380915803,1.01518368,2110.1,2109.2,3.18427719]
[1773380915983,1.01518368,2110.1,2109.2,3.23168853]
[1773380916183,1.01518368,2110.1,2109.3,0.93378735]
[1773380916380,1.01518368,2110.1,2109.4,0.04740684]
[1773380916580,1.01518368,2109.7,2109.2,0.93378735]
[1773380916793,1.18505877,2109.6,2109.1,0.0474116]
[1773380916993,1.01518368,2109.5,2109.0,0.93378735]
[1773380917173,1.01518368,2109.5,2108.8,0.93245091]
[1773380917375,2.20022845,2109.7,2108.9,0.93245091]
[1773380917576,1.01518368,2109.6,2108.9,0.93245091]
[1773380919002,2.20024442,2109.6,2109.1,1.18533971]
[1773380919205,2.20024442,2109.6,2109.1,2.11493317]
[1773380919409,2.20024442,2109.6,2109.1,0.92959346]
[1773380920008,1.01518368,2109.5,2108.9,0.92959346]
[1773380920210,1.01518368,2109.5,2109.0,2.004]
[1773380920706,1.01518368,2109.5,2109.0,2.93218125]
[1773380921090,1.01518368,2109.5,2109.0,2.004]
[1773380921291,2.20030874,2109.5,2109.0,2.004]
[1773380921475,1.18512506,2109.5,2109.1,0.92676158]
[1773380921680,2.20022086,2109.7,2109.1,0.97417516]
[1773380922811,1.01518368,2109.6,2109.1,0.92676158]
[1773380923390,2.891701,2110.1,2109.3,0.92392786]
[1773380923592,2.891701,2110.1,2109.5,0.92392786]
[1773380924211,0.98924221,2110.0,2109.5,0.92392786]
[1773380924707,0.98924221,2110.0,2109.2,1.18528351]
[1773380924708,1.036555,2109.9,2109.3,0.92254478]
[1773380924875,1.036555,2109.9,2109.3,0.92364478]
[1773380925433,0.98924221,2109.7,2109.3,2.0131]
[1773380925588,1.036555,2109.6,2109.3,2.0131]
[1773380925991,0.04731279,2109.6,2109.3,2.0131]
[1773380926212,1.036555,2109.7,2109.3,2.0131]
[1773380928022,2.22156973,2109.7,2109.3,2.0131]
[1773380928318,0.98924221,2109.6,2109.3,2.0131]
[1773380928524,0.04731279,2109.5,2109.3,2.0131]
[1773380930021,5.72863388,2110.0,2109.3,4.06653246]
[1773380930194,2.17407633,2110.0,2109.3,4.11384973]
[1773380930395,2.86574971,2110.1,2109.4,0.86685533]
[1773380930613,0.98924221,2110.0,2109.4,0.86685533]
[1773380931515,0.98924221,2110.0,2109.3,3.19831516]
[1773380932217,1.03440119,2109.8,2109.3,3.19831516]
[1773380932898,1.03440119,2109.8,2109.3,4.06432014]
[1773380933096,2.21928081,2110.0,2109.4,0.86605585]
[1773380933299,1.03440119,2110.0,2109.4,0.86605585]
[1773380934125,0.69170782,2110.1,2109.4,0.86605585]
[1773380934319,0.69170782,2110.1,2109.6,0.86610219]
[1773380935034,1.03440119,2110.0,2109.5,1.18511495]
[1773380935826,1.03440119,2110.0,2109.5,2.05126708]
[1773380936405,1.8764956,2110.1,2109.5,2.05126708]
[1773380937018,2.91089679,2110.1,2109.5,2.05126708]
[1773380937534,1.03440119,2110.0,2109.5,2.05126708]
[1773380937906,1.8764956,2110.1,2109.6,0.8662468]
[1773380937907,0.69170782,2110.1,2109.6,0.8662468]
[1773380938107,0.001,2109.9,2109.6,0.8662468]
[1773380938308,0.69170782,2110.1,2109.6,0.8662468]
[1773380938509,0.69170782,2110.1,2109.7,2.05027854]
[1773380939532,0.69170782,2110.1,2109.8,0.86531798]
[1773380939733,0.69170782,2110.1,2109.9,2.026]
[1773380940136,2.2189841,2110.5,2109.9,2.026]
[1773380940449,3.86713534,2110.4,2109.9,2.026]
[1773380940753,1.03440119,2110.2,2110.0,2.027]
[1773380940936,3.86713534,2110.1,2110.0,2.027]
[1773380941258,1.03440119,2110.0,2109.5,1.18615877]
[1773380941429,2.83273415,2109.9,2109.5,1.18615877]
[1773380941629,1.03440119,2110.0,2109.5,1.18615877]
[1773380941832,2.83445048,2109.9,2109.5,1.18615877]
[1773380942053,1.03440119,2110.0,2109.5,1.18615877]
[1773380942250,2.83443033,2109.9,2109.5,1.18615877]
[1773380942554,1.03440119,2110.0,2109.6,2.028]
[1773380942733,1.03440119,2110.0,2109.6,3.21305659]
[1773380942734,2.83465778,2109.9,2109.6,3.21305659]
[1773380942933,2.21925368,2110.0,2109.6,2.028]
[1773380943135,2.21925368,2110.0,2109.6,3.21304909]
[1773380943136,2.83465778,2109.9,2109.6,3.21304909]
[1773380943323,2.21925368,2110.0,2109.6,3.21304909]
[1773380943523,2.83507325,2109.9,2109.6,3.21304909]
[1773380943725,1.03440119,2109.9,2109.6,2.028]
[1773380945636,2.21922425,2110.1,2109.6,3.21305794]
[1773380945842,2.83527266,2110.0,2109.6,3.21305794]
[1773380946146,2.83527266,2109.9,2109.6,3.21305794]
[1773380946347,2.21922425,2110.1,2109.6,2.028]
[1773380946542,1.03440119,2109.9,2109.5,0.0011]
[1773380946726,1.03440119,2109.5,2109.3,0.0011]
[1773380946928,3.8695002,2109.4,2109.3,0.0011]
[1773380947278,2.83509901,2109.4,2109.3,0.0011]
[1773380947553,3.44729976,2109.8,2109.3,0.0011]
[1773380947735,1.03440119,2109.7,2109.3,0.0011]
[1773380948327,1.03440119,2109.7,2109.4,2.004]
[1773380948738,1.03440119,2109.5,2109.3,2.0031]
[1773380950740,1.03440119,2109.7,2109.3,3.18831883]
[1773380953975,2.21940848,2109.7,2109.3,3.18831883]
[1773380954177,2.21940848,2109.7,2109.1,2.07391198]
[1773380954347,1.03440119,2109.6,2109.1,1.18533575]
[1773380955275,1.03440119,2109.6,2109.2,2.015]
[1773380955788,2.22034763,2109.8,2109.3,1.18522732]
[1773380956670,1.03440119,2109.7,2109.3,1.18522732]
[1773380957485,1.03440119,2109.7,2109.2,3.20024375]
[1773380957782,1.03440119,2109.7,2109.2,2.015]
[1773380957983,1.03440119,2109.5,2109.2,2.015]
[1773380958376,1.18505877,2109.6,2109.2,3.20028202]
[1773380959274,2.21945996,2109.6,2109.2,2.015]
[1773380959460,1.03440119,2109.5,2109.2,2.015]
[1773380959656,1.18505877,2109.6,2109.2,2.015]
[1773380959886,1.18505877,2109.6,2109.2,3.20028131]
[1773380960989,1.05134782,2109.6,2109.2,3.20028131]
[1773380961659,1.18594644,2109.8,2109.2,3.20028131]
[1773380961877,2.83431391,2109.7,2109.2,3.20028131]
[1773380962083,2.83431391,2109.6,2109.4,0.0011]
[1773380962290,2.23729426,2109.8,2109.4,0.0011]
[1773380962461,2.83419419,2109.7,2109.4,0.0011]
[1773380962659,2.83419419,2109.6,2109.4,0.0011]
[1773380962862,2.23729426,2109.8,2109.4,0.0011]
[1773380963067,2.83419419,2109.7,2109.4,0.0011]
[1773380963282,2.23729426,2109.8,2109.4,0.0011]
[1773380963485,2.83410184,2109.7,2109.4,0.0011]
[1773380967608,2.23729426,2109.8,2109.4,0.86858722]
[1773380967609,0.001,2109.8,2109.4,0.86858722]
[1773380968474,1.05134782,2110.2,2109.5,0.94814228]
[1773380968674,2.23607057,2110.2,2109.5,0.94814228]
[1773380968994,1.05134782,2110.2,2109.5,0.94814228]
[1773380969200,2.23607308,2110.2,2109.5,0.94814228]
[1773380969603,2.23607308,2110.2,2109.7,0.94657311]
[1773380969801,2.23607308,2110.2,2109.8,2.027]
[1773380970300,1.05134782,2110.2,2109.8,2.027]
[1773380970510,2.23595737,2110.4,2109.8,2.97197715]
[1773380970917,1.05134782,2110.4,2109.8,2.97197715]
[1773380971614,1.05134782,2110.4,2109.9,2.12828617]
[1773380972387,2.23595864,2110.4,2109.9,2.12828617]
[1773380972918,1.05134782,2110.4,2109.9,2.12828617]
[1773380973210,0.001,2110.7,2110.0,0.9994154]
[1773380973211,1.05134782,2110.6,2110.0,0.9994154]
[1773380973986,1.05134782,2110.6,2110.1,2.18419337]
[1773380974215,1.18548035,2110.7,2110.2,0.9994154]
[1773380974810,0.001,2110.7,2110.3,0.9994154]
[1773380975005,0.001,2110.7,2110.4,2.028]
[1773380976713,1.05234782,2110.7,2110.4,2.028]
[1773380977217,0.001,2110.7,2110.4,2.028]
[1773380978340,0.001,2110.7,2110.5,0.9994154]
[1773380978508,0.001,2110.7,2110.4,2.028]
[1773380978835,0.001,2110.7,2110.4,3.21259567]
[1773380979142,0.001,2110.7,2110.4,2.028]
[1773380980446,0.001,2110.7,2110.4,4.21201739]
[1773380983844,0.001,2110.7,2110.5,0.9994154]
[1773380985731,0.001,2110.7,2110.6,1.18449729]
[1773380986336,0.001,2110.7,2110.5,2.1839241]
[1773380989454,0.001,2110.7,2110.5,2.22118428]
[1773380992553,1.08711661,2110.7,2110.4,2.0291]
[1773380994466,1.18549334,2110.7,2110.4,2.0291]
[1773380994773,1.08611661,2110.6,2110.4,2.0291]
[1773380995563,1.08611661,2110.6,2110.1,1.18587602]
[1773380995769,1.08611661,2110.6,2110.4,2.03]
[1773380997868,1.08611661,2110.5,2110.4,2.03]
[1773380999169,1.18454089,2110.6,2110.4,2.03]
[1773380999170,2.2706575,2110.6,2110.4,2.03]
[1773380999678,0.001,2110.5,2110.4,2.03]
[1773380999849,0.001,2110.5,2110.4,2.0311]
[1773381000370,1.08711661,2110.5,2110.4,2.0311]
[1773381002459,2.27167003,2110.5,2110.2,1.03067423]
[1773381002659,2.27167003,2110.5,2110.1,1.03177423]
[1773381003058,2.27167003,2110.5,2110.1,0.0011]
[1773381003059,1.08611661,2110.4,2110.1,0.0011]
[1773381003687,1.08611661,2110.4,2110.2,2.03]
[1773381004681,2.27076924,2110.4,2110.2,2.03]
[1773381004887,0.001,2110.5,2110.2,4.01295579]
[1773381005074,1.08611661,2110.4,2110.2,2.03]
[1773381007569,2.27076135,2110.4,2110.2,2.03]
[1773381008696,1.18464474,2110.4,2110.2,2.03]
[1773381008886,1.18464474,2110.4,2110.2,2.029]
[1773381008887,1.08611661,2110.3,2110.2,2.029]
[1773381009087,1.08611661,2110.3,2110.1,0.0011]
[1773381010309,1.08611661,2110.3,2110.2,2.029]
[1773381010481,1.18464474,2110.4,2110.2,2.029]
[1773381010482,2.27076135,2110.4,2110.2,2.029]
[1773381011683,1.08611661,2110.4,2110.2,2.029]
[1773381012092,0.001,2110.5,2110.2,2.029]
[1773381012272,1.08711661,2110.5,2110.2,2.029]
[1773381012468,1.08711661,2110.5,2109.9,0.0011]
[1773381012695,1.08611661,2110.3,2109.9,0.0011]
[1773381012998,0.001,2110.5,2109.5,2.20393202]
[1773381012999,1.08611661,2110.1,2109.5,2.20393202]
[1773381013180,1.08611661,2110.1,2109.4,0.0011]
[1773381013581,1.08611661,2110.1,2109.4,1.03177423]
[1773381013981,1.08611661,2110.1,2109.5,2.028]
[1773381014202,1.08611661,2109.9,2109.5,2.028]
[1773381015172,1.08611661,2109.9,2109.2,1.03067423]
[1773381016594,1.08611661,2109.9,2109.3,2.028]
[1773381016595,1.08611661,2109.7,2109.3,2.028]
[1773381017473,1.08611661,2109.7,2109.3,3.05867423]
[1773381018704,2.27115888,2109.7,2109.3,2.028]
[1773381020702,2.27115888,2109.7,2109.3,3.09501154]
[1773381020900,1.01121295,2109.6,2109.3,3.09501154]
[1773381021076,1.01121295,2109.6,2109.3,2.028]
[1773381021680,1.01121295,2109.6,2109.1,0.0011]
[1773381022696,1.01121295,2109.4,2109.1,0.0011]
[1773381024717,1.01121295,2109.4,2109.3,0.0011]
[1773381024890,1.18522732,2109.3,2108.6,1.06701154]
[1773381025089,1.01121295,2109.2,2108.7,1.06701154]
[1773381025712,1.01121295,2109.2,2108.6,2.022]
[1773381026706,1.01121295,2109.2,2108.7,1.06701154]
[1773381027311,1.18533971,2109.1,2108.7,1.06701154]
[1773381029425,2.19655266,2109.1,2108.7,1.06701154]
[1773381030213,2.19655266,2109.1,2108.8,1.06701154]
[1773381030919,2.19655266,2109.1,2108.6,4.27459233]
[1773381031525,2.19655266,2109.1,2108.7,1.06701154]
[1773381031888,1.18531996,2109.2,2108.8,1.06701154]
[1773381032088,5.75183426,2109.5,2108.8,1.06701154]
[1773381032529,1.01121295,2109.4,2108.8,1.06701154]
[1773381033712,2.19642882,2109.4,2108.9,2.25246367]
[1773381033903,2.19642882,2109.4,2109.0,1.06701154]
[1773381035225,1.01121295,2109.3,2109.0,1.06701154]
[1773381035923,2.1964733,2109.3,2109.0,1.06701154]
[1773381036524,2.1964733,2109.3,2109.2,0.0011]
[1773381037616,1.18526035,2109.3,2109.2,0.0011]
[1773381037794,0.001,2109.5,2109.3,1.06701154]
[1773381038130,1.01221295,2109.5,2109.2,0.0011]
[1773381038833,1.01221295,2109.5,2108.8,1.06701154]
[1773381038834,0.79969197,2109.5,2108.8,1.06701154]